[Event "DVM U12 2019"]
[Site "Magedburg"]
[Date "2019.12.29"]
[Round "6"]
[White "Freude, Max"]
[Black "Kageler, Anton Paul"]
[Result "1/2-1/2"]
[ECO "A01"]
[WhiteElo "1809"]
[BlackElo "1777"]
[Annotator "NA"]
[PlyCount "95"]
[EventDate "2019.12.27"]
[EventType "team-tourn"]
[EventRounds "7"]
[EventCountry "GER"]
[SourceTitle "playchess.com"]
[Source "ChessBase"]
[SourceQuality "1"]
[WhiteTeam "SV Empor Berlin"]
[BlackTeam "SV Roter Turm Halle"]
[WhiteTeamCountry "GER"]
[BlackTeamCountry "GER"]
[TimeControl "40/5400+30:1800+30"]

1. b3 {[%emt 0:00:00]} Nf6 {[%emt 0:02:28]} 2. Bb2 {[%emt 0:00:00]} g6 {[%emt 0:00:13]} 3. e3 {[%emt 0:00:32]} Bg7 {[%emt 0:00:07]} 4. Nf3 {[%emt 0:00:19]} O-O {[%emt 0:00:14]} 5. c4 {[%emt 0:00:20]} d6 {[%emt 0:00:29]} 6. Be2 {[%emt 0:00:46]} Nbd7 {[%emt 0:00:09]} 7. Nc3 {[%emt 0:00:57]} e5 {[%emt 0:01:43]} 8. O-O {[%emt 0:01:53]} Re8 {[%emt 0:02:27]} 9. d3 {[%emt 0:06:05]} c6 10. Qc2 {[%emt 0:02:24]} a6 {[%emt 0:09:55]} 11. Rfd1 {[%emt 0:02:02]} d5 {[%emt 0:01:36]} 12. cxd5 {[%emt 0:04:24]} cxd5 13. Na4 {[%emt 0:04:00]} Qe7 {[%emt 0:03:51]} 14. Rac1 Rb8 15. Nc5 {[%emt 0:07:52]} b6 {[%emt 0:15:30]} 16. Nxd7 {[%emt 0:00:52]} Nxd7 {[%emt 0:00:12]} 17. e4 {[%emt 0:06:37]} d4 {[%emt 0:01:57]} 18. Qd2 {[%emt 0:09:22]} Bb7 {[%emt 0:02:51]} 19. Rc2 {[%emt 0:04:05]} Rbc8 {[%emt 0:04:44]} 20. Rdc1 {[%emt 0:03:12]} Nc5 {[%emt 0:09:14]} 21. b4 {[%emt 0:12:07]} Ne6 {[%emt 0:02:06]} 22. Rxc8 {[%emt 0:00:43]} Rxc8 {[%emt 0:02:43]} 23. Rxc8+ {[%emt 0:00:10]} Bxc8 {[%emt 0:00:03]} 24. Qc2 {[%emt 0:02:25]} Bb7 {[%emt 0:02:09]} 25. a3 {[%emt 0:01:30]} f5 {[%emt 0:07:13]} 26. Bf1 {[%emt 0:15:14]} Qc7 {[%emt 0:07:48]} 27. Qb3 {[%emt 0:00:53]} Qf7 {[%emt 0:03:35]} 28. Qc2 {[%emt 0:01:19]} Qc7 {[%emt 0:02:30]} 29. Qb3 {[%emt 0:01:29]} Qf7 {[%emt 0:00:11]} 30. Nd2 {[%emt 0:01:49]} b5 {[%emt 0:04:58]} 31. Qc2 {[%emt 0:01:41]} Qc7 {[%emt 0:00:50]} 32. Qxc7 {[%emt 0:00:49]} Nxc7 {[%emt 0:00:05]} 33. f3 {[%emt 0:00:14]} Bh6 {[%emt 0:01:07]} 34. Nb3 {[%emt 0:00:41]} Ne6 {[%emt 0:00:15]} 35. Bc1 {[%emt 0:01:49]} Bg7 {[%emt 0:02:48]} 36. Kf2 {[%emt 0:01:57]} Kf7 {[%emt 0:00:06]} 37. g3 {[%emt 0:00:22]} Ke7 {[%emt 0:01:33]} 38. Be2 {[%emt 0:01:23]} Kd6 {[%emt 0:01:57]} 39. Bd1 {[%emt 0:01:07]} h6 {[%emt 0:03:32]} 40. Na5 {[%emt 0:02:35]} Bc8 {[%emt 0:00:23]} 41. Bb3 {[%emt 0:07:03]} Kc7 {[%emt 0:04:29]} 42. Bd5 {[%emt 0:05:38]} Bd7 {[%emt 0:04:18]} 43. Ke2 {[%emt 0:05:12]} Bf8 {[%emt 0:05:29]} 44. Bd2 {[%emt 0:04:02]} Bg7 {[%emt 0:01:37]} 45. h4 {[%emt 0:02:26]} Bf8 {[%emt 0:01:26]} 46. Kf2 {[%emt 0:01:51]} Bg7 {[%emt 0:00:26]} 47. Kg2 {[%emt 0:00:57]} Kb6 {[%emt 0:03:54] normal} 48. Kf2 {[%emt 0:02:49] normal} 1/2-1/2

[Event "DVM U12 2019"]
[Site "Magedburg"]
[Date "2019.12.29"]
[Round "6"]
[White "Fuhrmann, Bahne"]
[Black "Kempe, Caius Emilian"]
[Result "1-0"]
[ECO "B38"]
[WhiteElo "1603"]
[BlackElo "1832"]
[Annotator "NA"]
[PlyCount "211"]
[EventDate "2019.12.27"]
[EventType "team-tourn"]
[EventRounds "7"]
[EventCountry "GER"]
[SourceTitle "playchess.com"]
[Source "ChessBase"]
[SourceQuality "1"]
[WhiteTeam "Hamburger SK"]
[BlackTeam "USV TU Dresden"]
[WhiteTeamCountry "GER"]
[BlackTeamCountry "GER"]
[TimeControl "40/5400+30:1800+30"]

1. e4 {[%emt 0:00:00]} c5 {[%emt 0:00:00]} 2. Nf3 {[%emt 0:00:00]} Nc6 {[%emt 0:00:00]} 3. d4 {[%emt 0:00:00]} cxd4 {[%emt 0:00:00]} 4. Nxd4 {[%emt 0:00:00]} g6 {[%emt 0:00:00]} 5. c4 {[%emt 0:00:00]} Bg7 {[%emt 0:00:00]} 6. Be3 {[%emt 0:00:00]} Nf6 {[%emt 0:00:11]} 7. Nc3 {[%emt 0:00:00]} d6 {[%emt 0:00:11]} 8. Qd2 {[%emt 0:01:00]} O-O {[%emt 0:00:22]} 9. f3 {[%emt 0:00:25]} Bd7 {[%emt 0:06:26]} 10. Be2 {[%emt 0:01:06]} Nxd4 {[%emt 0:01:19]} 11. Bxd4 {[%emt 0:00:08]} a5 {[%emt 0:00:31]} 12. a4 {[%emt 0:06:20]} Be6 {[%emt 0:09:04]} 13. b3 {[%emt 0:08:16]} Nd7 {[%emt 0:00:24]} 14. Be3 {[%emt 0:00:28]} b6 {[%emt 0:22:38]} 15. Rb1 {[%emt 0:03:22]} Nc5 {[%emt 0:02:53]} 16. O-O {[%emt 0:03:27]} Qd7 {[%emt 0:03:22]} 17. Nd5 {[%emt 0:05:40]} Bxd5 {[%emt 0:00:35]} 18. cxd5 {[%emt 0:00:55]} Rfc8 {[%emt 0:02:18]} 19. Bb5 {[%emt 0:01:05]} Qd8 {[%emt 0:00:58]} 20. Bc6 {[%emt 0:09:28]} Ra7 {[%emt 0:01:01]} 21. Kh1 {[%emt 0:01:45]} Rb8 {[%emt 0:05:11]} 22. Rfc1 {[%emt 0:04:16]} Bf6 {[%emt 0:06:05]} 23. Rc2 {[%emt 0:02:31]} Bg7 {[%emt 0:02:54]} 24. Qe2 {[%emt 0:08:57]} Bf6 {[%emt 0:01:30]} 25. Qb5 {[%emt 0:02:47]} Kg7 {[%emt 0:02:25]} 26. b4 {[%emt 0:06:39]} axb4 {[%emt 0:00:38]} 27. Qxb4 {[%emt 0:00:58]} Ra5 {[%emt 0:01:26]} 28. Qc4 {[%emt 0:07:11]} Qc7 {[%emt 0:03:12]} 29. Bd2 {[%emt 0:00:47]} Ra7 {[%emt 0:01:02]} 30. Qb4 {[%emt 0:03:11]} Qd8 {[%emt 0:05:27]} 31. Ra2 {[%emt 0:04:35]} Na6 {[%emt 0:03:32]} 32. Qc4 {[%emt 0:02:37]} Qc7 {[%emt 0:03:04]} 33. Be3 {[%emt 0:04:58]} Nc5 {[%emt 0:01:24]} 34. Qb4 {[%emt 0:02:46]} Ra5 {[%emt 0:01:42]} 35. Bd2 {[%emt 0:01:17]} Qd8 {[%emt 0:03:33]} 36. Qc4 {[%emt 0:00:54]} Ra7 {[%emt 0:00:07]} 37. Qb5 {[%emt 0:01:55]} Na6 {[%emt 0:01:01]} 38. Be3 {[%emt 0:01:11]} Nc5 {[%emt 0:08:49]} 39. a5 {[%emt 0:01:06]} Bc3 {[%emt 0:01:44]} 40. a6 {[%emt 0:01:20]} Qc7 {[%emt 0:01:24]} 41. Bxc5 {[%emt 0:31:13]} dxc5 {[%emt 0:01:46]} 42. Rc2 {[%emt 0:00:00]} Be5 {[%emt 0:01:07]} 43. Bb7 {[%emt 0:00:00]} Bxh2 {[%emt 0:03:06]} 44. Qxb6 {[%emt 0:00:00]} Qxb6 {[%emt 0:02:09]} 45. Rxb6 {[%emt 0:00:00]} Bc7 {[%emt 0:02:33]} 46. Rbb2 {[%emt 0:00:00]} Bd6 {[%emt 0:01:45]} 47. Kg1 {[%emt 0:00:00]} Be5 {[%emt 0:04:10]} 48. Rb6 {[%emt 0:00:00]} Bd4+ {[%emt 0:00:07]} 49. Kf1 {[%emt 0:00:00]} Kf8 {[%emt 0:01:26]} 50. Ke2 {[%emt 0:00:00]} Rd8 {[%emt 0:03:23]} 51. Kd3 {[%emt 0:00:00]} Rd6 {[%emt 0:00:53]} 52. Rc6 {[%emt 0:00:00]} Ke8 {[%emt 0:02:10]} 53. Kc4 {[%emt 0:00:00]} Kd7 {[%emt 0:01:57]} 54. Kb5 {[%emt 0:00:00]} Rxc6 {[%emt 0:03:17]} 55. dxc6+ {[%emt 0:00:00]} Kc7 {[%emt 0:00:20]} 56. g4 {[%emt 0:00:50]} h6 {[%emt 0:01:40]} 57. Rh2 {[%emt 0:01:35]} Be3 {[%emt 0:00:09]} 58. Rh1 {[%emt 0:00:11]} e5 {[%emt 0:00:57]} 59. Kc4 {[%emt 0:01:42]} Kb6 {[%emt 0:02:04]} 60. Kd5 {[%emt 0:01:26]} Kc7 {[%emt 0:01:22]} 61. Kxe5 {[%emt 0:00:53]} Bd4+ {[%emt 0:00:23]} 62. Kd5 {[%emt 0:00:25]} Be3 {[%emt 0:01:02]} 63. Kc4 {[%emt 0:00:29]} Kb6 {[%emt 0:03:36]} 64. Kd3 {[%emt 0:00:44]} Bf4 {[%emt 0:00:14]} 65. Rb1+ {[%emt 0:00:28]} Kc7 {[%emt 0:00:08]} 66. Ke2 {[%emt 0:00:07]} Bd6 {[%emt 0:00:18]} 67. Rd1 {[%emt 0:00:34]} f6 {[%emt 0:00:29]} 68. Rd5 {[%emt 0:01:20]} c4 {[%emt 0:01:09]} 69. Kd2 {[%emt 0:00:36]} Be5 {[%emt 0:00:38]} 70. Rd7+ {[%emt 0:00:41]} Kb6 {[%emt 0:01:22]} 71. Rg7 {[%emt 0:00:56]} g5 {[%emt 0:00:38]} 72. Rh7 {[%emt 0:03:08]} Rxa6 {[%emt 0:00:13]} 73. Bxa6 {[%emt 0:00:20]} Kxa6 {[%emt 0:00:01]} 74. Rb7 {[%emt 0:01:25]} Bd4 {[%emt 0:01:19]} 75. Ke2 {[%emt 0:02:35]} Bb6 {[%emt 0:00:44]} 76. Rf7 {[%emt 0:00:39]} Bd4 {[%emt 0:00:12]} 77. Rd7 {[%emt 0:00:57]} Be5 {[%emt 0:00:25]} 78. Rb7 {[%emt 0:00:22]} Bd4 {[%emt 0:00:05]} 79. Rb1 {[%emt 0:00:07]} Bb6 {[%emt 0:01:18]} 80. Rb4 {[%emt 0:00:13]} Bc7 {[%emt 0:00:24]} 81. Rxc4 {[%emt 0:00:05]} Kb6 {[%emt 0:00:07]} 82. Kd3 {[%emt 0:00:13]} Be5 {[%emt 0:00:08]} 83. Kc2 {[%emt 0:00:16]} Kc7 {[%emt 0:00:06]} 84. Kb3 {[%emt 0:00:05]} Bd6 {[%emt 0:01:44]} 85. Ka4 {[%emt 0:00:04]} Kb6 {[%emt 0:00:08]} 86. Rc2 {[%emt 0:00:09]} Bc7 {[%emt 0:00:11]} 87. Kb3 {[%emt 0:00:22]} Bd6 {[%emt 0:00:09]} 88. Rc1 {[%emt 0:00:18]} Be5 {[%emt 0:00:31]} 89. Rh1 {[%emt 0:00:32]} Kxc6 {[%emt 0:00:07]} 90. Rxh6 {[%emt 0:00:06]} Kc5 {[%emt 0:00:10]} 91. Kc2 {[%emt 0:00:42]} Kd4 {[%emt 0:00:06]} 92. Kd2 {[%emt 0:00:08]} Bf4+ {[%emt 0:00:18]} 93. Ke2 {[%emt 0:00:14]} Be5 {[%emt 0:00:29]} 94. Rh1 {[%emt 0:00:20]} Bf4 {[%emt 0:00:29]} 95. Rd1+ {[%emt 0:00:06]} Kc4 {[%emt 0:01:03]} 96. Rd5 {[%emt 0:00:06]} Be5 {[%emt 0:00:35]} 97. Kd2 {[%emt 0:00:28]} Bf4+ {[%emt 0:00:14]} 98. Kc2 {[%emt 0:00:05]} Be5 {[%emt 0:00:06]} 99. Rd7 {[%emt 0:00:39]} Bf4 {[%emt 0:00:14]} 100. Kb2 {[%emt 0:01:15]} Be5+ {[%emt 0:00:31]} 101. Ka3 {[%emt 0:00:12]} Kb5 {[%emt 0:00:28]} 102. Kb3 {[%emt 0:00:12]} Kc6 {[%emt 0:00:30]} 103. Rd5 {[%emt 0:00:07]} Bf4 {[%emt 0:00:09]} 104. Kc4 {[%emt 0:00:06] normal} Be5 {[%emt 0:00:13] normal} 105. Rc5+ {[%emt 0:00:44]} Kd6 {[%emt 0:00:10]} 106. Kb5 {[%emt 0:00:22] normal} 1-0

[Event "DVM U12 2019"]
[Site "Magedburg"]
[Date "2019.12.29"]
[Round "6"]
[White "Espig, Nils"]
[Black "Krüger, Arthur"]
[Result "1/2-1/2"]
[ECO "C11"]
[WhiteElo "1596"]
[BlackElo "1693"]
[Annotator "NA"]
[PlyCount "90"]
[EventDate "2019.12.27"]
[EventType "team-tourn"]
[EventRounds "7"]
[EventCountry "GER"]
[SourceTitle "playchess.com"]
[Source "ChessBase"]
[SourceQuality "1"]
[WhiteTeam "USV TU Dresden"]
[BlackTeam "Hamburger SK"]
[WhiteTeamCountry "GER"]
[TimeControl "40/5400+30:1800+30"]

1. e4 {[%emt 0:00:00]} e6 {[%emt 0:00:00]} 2. d4 {[%emt 0:00:00]} d5 {[%emt 0:00:00]} 3. Nc3 {[%emt 0:00:07]} Nf6 {[%emt 0:00:06]} 4. e5 {[%emt 0:00:33]} Nfd7 {[%emt 0:00:10]} 5. Nce2 {[%emt 0:00:17]} c5 {[%emt 0:01:03]} 6. c3 {[%emt 0:00:55]} Nc6 {[%emt 0:02:48]} 7. f4 {[%emt 0:03:09]} Be7 {[%emt 0:05:48]} 8. Nf3 {[%emt 0:04:32]} b6 {[%emt 0:03:43]} 9. Ng3 {[%emt 0:04:45]} Qc7 {[%emt 0:07:41]} 10. Be2 {[%emt 0:02:57]} a5 {[%emt 0:07:03]} 11. a4 {[%emt 0:08:33]} Ba6 {[%emt 0:03:31]} 12. Bxa6 {[%emt 0:05:12]} Rxa6 {[%emt 0:00:08]} 13. Qe2 {[%emt 0:00:22]} Ra8 {[%emt 0:00:28]} 14. O-O {[%emt 0:01:22]} O-O {[%emt 0:00:56]} 15. Be3 {[%emt 0:01:11]} Qb7 {[%emt 0:11:05]} 16. Rac1 {[%emt 0:06:29]} Qa6 {[%emt 0:02:59]} 17. Qxa6 {[%emt 0:01:35]} Rxa6 {[%emt 0:00:08]} 18. Nd2 {[%emt 0:02:33]} Rc8 {[%emt 0:03:28]} 19. f5 {[%emt 0:05:35]} Raa8 {[%emt 0:05:04]} 20. fxe6 {[%emt 0:02:11]} fxe6 {[%emt 0:00:33]} 21. Nb1 {[%emt 0:04:34]} cxd4 {[%emt 0:04:42]} 22. cxd4 {[%emt 0:00:43]} Nb4 {[%emt 0:01:07]} 23. Nc3 {[%emt 0:03:59]} h6 {[%emt 0:05:23]} 24. Rfd1 {[%emt 0:05:20]} Nf8 {[%emt 0:05:47]} 25. Nb5 {[%emt 0:05:13]} Nc2 {[%emt 0:08:10]} 26. Bd2 {[%emt 0:06:36]} Nb4 {[%emt 0:08:55]} 27. b3 {[%emt 0:04:08]} Nd7 {[%emt 0:05:41]} 28. Rxc8+ {[%emt 0:04:06]} Rxc8 {[%emt 0:00:06]} 29. Rc1 {[%emt 0:00:50]} Rxc1+ {[%emt 0:00:41]} 30. Bxc1 {[%emt 0:00:09]} Nb8 {[%emt 0:01:07]} 31. Ne2 {[%emt 0:04:23]} N8c6 {[%emt 0:01:04]} 32. Bd2 {[%emt 0:00:48]} Kf7 {[%emt 0:02:15]} 33. g3 {[%emt 0:05:54]} Nb8 {[%emt 0:02:38]} 34. Kg2 {[%emt 0:00:16]} g5 {[%emt 0:00:46]} 35. Kf3 {[%emt 0:00:52]} Kg6 {[%emt 0:01:14]} 36. g4 {[%emt 0:00:43]} Kf7 {[%emt 0:00:25]} 37. h3 {[%emt 0:00:25]} N8c6 {[%emt 0:00:26]} 38. Kf2 {[%emt 0:01:16]} Bf8 {[%emt 0:00:42]} 39. Kg3 {[%emt 0:01:06]} Be7 {[%emt 0:00:36]} 40. Kg2 {[%emt 0:01:09]} Nd3 {[%emt 0:00:44]} 41. Kf1 {[%emt 0:30:57]} Ndb4 {[%emt 0:08:20]} 42. Be3 {[%emt 0:00:00]} Nc2 {[%emt 0:01:44]} 43. Bf2 {[%emt 0:00:00]} N6b4 {[%emt 0:04:14]} 44. Nc1 {[%emt 0:00:00]} Nc6 {[%emt 0:03:15]} 45. Ne2 {[%emt 0:00:00]} N2b4 {[%emt 0:02:05] normal} 1/2-1/2

[Event "DVM U12 2019"]
[Site "Magedburg"]
[Date "2019.12.29"]
[Round "6"]
[White "Held, Momme Fredrik"]
[Black "Rehbein, Vitus"]
[Result "1-0"]
[ECO "A20"]
[WhiteElo "1573"]
[BlackElo "1547"]
[Annotator "NA"]
[PlyCount "81"]
[EventDate "2019.12.27"]
[EventType "team-tourn"]
[EventRounds "7"]
[EventCountry "GER"]
[SourceTitle "playchess.com"]
[Source "ChessBase"]
[SourceQuality "1"]
[WhiteTeam "SC Kreuzberg"]
[BlackTeam "Schachzentrum Bemerode"]
[WhiteTeamCountry "GER"]
[BlackTeamCountry "GER"]
[TimeControl "40/5400+30:1800+30"]

1. c4 {[%emt 0:00:00]} e5 {[%emt 0:00:00]} 2. g3 {[%emt 0:00:00]} Nf6 {[%emt 0:00:09]} 3. Bg2 {[%emt 0:00:00]} g6 {[%emt 0:00:19]} 4. Nc3 {[%emt 0:00:21]} Bg7 {[%emt 0:00:12]} 5. e4 {[%emt 0:00:19]} Nc6 {[%emt 0:00:11]} 6. Nge2 {[%emt 0:00:49]} O-O {[%emt 0:00:19]} 7. O-O {[%emt 0:00:12]} d6 {[%emt 0:01:52]} 8. d3 {[%emt 0:00:15]} Be6 {[%emt 0:01:04]} 9. h3 {[%emt 0:00:09]} Qd7 {[%emt 0:00:20]} 10. Kh2 {[%emt 0:00:14]} Ne8 {[%emt 0:07:25]} 11. f4 {[%emt 0:00:32]} f5 {[%emt 0:00:45]} 12. Be3 {[%emt 0:01:22]} Ne7 {[%emt 0:10:53]} 13. Qd2 {[%emt 0:04:13]} c6 {[%emt 0:05:22]} 14. Rab1 {[%emt 0:02:59]} Nc7 {[%emt 0:01:00]} 15. b4 {[%emt 0:06:22]} b6 {[%emt 0:17:35]} 16. a4 {[%emt 0:04:27]} Rab8 {[%emt 0:01:27]} 17. b5 {[%emt 0:01:29]} c5 {[%emt 0:02:22]} 18. Nd5 {[%emt 0:02:56]} Rf7 {[%emt 0:10:05]} 19. a5 {[%emt 0:02:49]} Bxd5 {[%emt 0:01:25]} 20. exd5 {[%emt 0:06:49]} Ra8 {[%emt 0:00:46]} 21. a6 {[%emt 0:02:25]} Re8 {[%emt 0:01:43]} 22. Rbe1 {[%emt 0:15:42]} Kh8 {[%emt 0:02:14]} 23. Ng1 {[%emt 0:02:55]} Ng8 {[%emt 0:00:59]} 24. Nf3 {[%emt 0:00:49]} Rfe7 {[%emt 0:00:33]} 25. Ng5 {[%emt 0:16:31]} Qc8 {[%emt 0:11:48]} 26. Qc2 {[%emt 0:01:19]} Bf6 {[%emt 0:02:54]} 27. Nf3 {[%emt 0:01:15]} Qd7 {[%emt 0:01:39]} 28. Qd2 Qc8 {[%emt 0:00:45]} 29. Rf2 {[%emt 0:05:48]} e4 {[%emt 0:06:24]} 30. dxe4 {[%emt 0:00:39]} Rxe4 31. Ng5 {[%emt 0:02:06]} R4e7 {[%emt 0:02:05]} 32. Rfe2 {[%emt 0:00:19]} h6 {[%emt 0:02:30]} 33. Nf3 {[%emt 0:00:27]} Qd7 {[%emt 0:00:29]} 34. Bf2 {[%emt 0:01:14]} Rxe2 {[%emt 0:01:05]} 35. Rxe2 {[%emt 0:00:04]} Rxe2 {[%emt 0:00:05]} 36. Qxe2 {[%emt 0:00:04]} Qe7 {[%emt 0:00:05]} 37. Qxe7 {[%emt 0:01:17]} Bxe7 {[%emt 0:00:40]} 38. g4 {[%emt 0:00:12] normal} Nf6 {[%emt 0:03:21]} 39. gxf5 {[%emt 0:00:49] normal} gxf5 {[%emt 0:01:32] normal} 40. Nh4 {[%emt 0:00:33] normal} Nh5 {[%emt 0:01:57]} 41. Ng6+ {[%emt 0:30:20] normal} 1-0

[Event "DVM U12 2019"]
[Site "Magedburg"]
[Date "2019.12.29"]
[Round "6"]
[White "Malchereck, Zion"]
[Black "Richter, Nicholas"]
[Result "1-0"]
[ECO "B24"]
[WhiteElo "1543"]
[BlackElo "1448"]
[Annotator "NA"]
[PlyCount "79"]
[EventDate "2019.12.27"]
[EventType "team-tourn"]
[EventRounds "7"]
[EventCountry "GER"]
[SourceTitle "playchess.com"]
[Source "ChessBase"]
[SourceQuality "1"]
[WhiteTeam "Hamburger SK"]
[BlackTeam "USV TU Dresden"]
[WhiteTeamCountry "GER"]
[BlackTeamCountry "GER"]
[TimeControl "40/5400+30:1800+30"]

1. e4 {[%emt 0:00:00]} c5 {[%emt 0:02:13]} 2. Nc3 {[%emt 0:00:08]} Nc6 {[%emt 0:01:30]} 3. Bb5 {[%emt 0:00:11]} Nd4 {[%emt 0:01:32]} 4. f4 {[%emt 0:00:53]} Nxb5 {[%emt 0:02:47]} 5. Nxb5 {[%emt 0:00:16]} d6 {[%emt 0:01:41]} 6. d3 {[%emt 0:00:55]} g6 {[%emt 0:00:58]} 7. Nf3 {[%emt 0:00:25]} Bg7 {[%emt 0:00:57]} 8. Nc3 {[%emt 0:00:30]} e6 {[%emt 0:02:48]} 9. O-O {[%emt 0:00:26]} Ne7 {[%emt 0:01:20]} 10. Qe1 {[%emt 0:01:33]} O-O {[%emt 0:01:08]} 11. Qh4 a6 {[%emt 0:01:10]} 12. a4 {[%emt 0:05:42]} Nc6 {[%emt 0:03:03]} 13. Qf2 {[%emt 0:06:49]} Qc7 {[%emt 0:05:48]} 14. Kh1 {[%emt 0:02:18]} b6 {[%emt 0:06:00]} 15. Ne2 {[%emt 0:01:56]} Bb7 {[%emt 0:02:34]} 16. c3 {[%emt 0:00:39]} Ne7 {[%emt 0:00:45]} 17. Qh4 {[%emt 0:01:21]} Rac8 {[%emt 0:01:35]} 18. Ng5 {[%emt 0:01:00]} h6 {[%emt 0:00:55]} 19. Nf3 {[%emt 0:02:30]} Kh7 {[%emt 0:00:36]} 20. Ng3 {[%emt 0:11:29]} Qd7 {[%emt 0:01:04]} 21. Ng5+ {[%emt 0:10:20]} Kg8 {[%emt 0:00:16]} 22. Nf3 {[%emt 0:01:53]} Kh7 {[%emt 0:00:07]} 23. Bd2 {[%emt 0:00:35]} b5 {[%emt 0:04:12]} 24. axb5 {[%emt 0:01:06]} axb5 {[%emt 0:00:01]} 25. Rae1 {[%emt 0:01:16]} Rce8 {[%emt 0:01:20]} 26. Be3 {[%emt 0:10:49]} Qc7 {[%emt 0:02:40]} 27. Kg1 {[%emt 0:03:50]} Ba8 {[%emt 0:02:24]} 28. d4 {[%emt 0:02:13]} Bb7 {[%emt 0:03:17]} 29. dxc5 {[%emt 0:01:48]} dxc5 {[%emt 0:00:11]} 30. Rd1 {[%emt 0:05:42]} Rd8 {[%emt 0:02:57]} 31. Ne5 {[%emt 0:06:32]} Rxd1 {[%emt 0:04:30]} 32. Rxd1 {[%emt 0:00:42]} Bxe5 {[%emt 0:01:57]} 33. fxe5 {[%emt 0:00:16]} h5 {[%emt 0:00:24]} 34. Qg5 {[%emt 0:03:50]} Ng8 {[%emt 0:00:47]} 35. Rf1 {[%emt 0:00:49]} Ba8 {[%emt 0:01:16]} 36. Rf6 {[%emt 0:02:33]} Bb7 {[%emt 0:00:29] normal} 37. Nxh5 {[%emt 0:04:08] normal} Bxe4 {[%emt 0:02:26] normal} 38. Rf4 {[%emt 0:01:25] normal} Bf5 {[%emt 0:01:37]} 39. Nf6+ {[%emt 0:01:00] normal} Kg7 {[%emt 0:00:15]} 40. Rh4 {[%emt 0:00:24] normal} 1-0

[Event "DVM U12 2019"]
[Site "Magedburg"]
[Date "2019.12.29"]
[Round "6"]
[White "Fruth, David"]
[Black "Brandstrup, Luca Alexander"]
[Result "1-0"]
[ECO "B55"]
[WhiteElo "1473"]
[BlackElo "1602"]
[Annotator "NA"]
[PlyCount "123"]
[EventDate "2019.12.27"]
[EventType "team-tourn"]
[EventRounds "7"]
[EventCountry "GER"]
[SourceTitle "playchess.com"]
[Source "ChessBase"]
[SourceQuality "1"]
[WhiteTeam "USV TU Dresden"]
[BlackTeam "Hamburger SK"]
[WhiteTeamCountry "GER"]
[BlackTeamCountry "GER"]
[TimeControl "40/5400+30:1800+30"]

1. e4 {[%emt 0:00:00]} c5 {[%emt 0:00:00]} 2. Nf3 {[%emt 0:00:00]} d6 {[%emt 0:00:00]} 3. d4 {[%emt 0:00:00]} cxd4 {[%emt 0:00:27]} 4. Nxd4 {[%emt 0:00:00]} Nf6 {[%emt 0:00:18]} 5. f3 {[%emt 0:00:00]} e5 {[%emt 0:00:06]} 6. Bb5+ {[%emt 0:03:00]} Nbd7 {[%emt 0:00:09]} 7. Nf5 {[%emt 0:00:06]} d5 {[%emt 0:00:56]} 8. exd5 {[%emt 0:00:16]} a6 {[%emt 0:00:09]} 9. Ba4 {[%emt 0:01:10]} b5 {[%emt 0:00:08]} 10. Bb3 {[%emt 0:00:03]} Nc5 {[%emt 0:00:51]} 11. Ne3 {[%emt 0:01:31]} Nxb3 {[%emt 0:00:08]} 12. axb3 {[%emt 0:00:04]} Bc5 {[%emt 0:00:43]} 13. c4 {[%emt 0:01:44]} Qb6 {[%emt 0:06:12]} 14. Qd3 {[%emt 0:01:06]} Bd7 {[%emt 0:11:06]} 15. Nc3 {[%emt 0:01:09]} Bb4 {[%emt 0:01:02]} 16. O-O {[%emt 0:01:02]} g6 {[%emt 0:07:32]} 17. Kh1 {[%emt 0:02:33]} Qd4 {[%emt 0:01:18]} 18. Qc2 {[%emt 0:05:13]} Qc5 {[%emt 0:07:12]} 19. Ne4 {[%emt 0:01:44]} Qe7 {[%emt 0:05:21]} 20. d6 {[%emt 0:07:02]} Bxd6 {[%emt 0:04:18]} 21. c5 {[%emt 0:00:22]} Bc7 {[%emt 0:01:58]} 22. c6 {[%emt 0:03:34]} Be6 {[%emt 0:03:56]} 23. Nc3 {[%emt 0:03:39]} O-O {[%emt 0:04:00]} 24. Rd1 {[%emt 0:01:13]} Qc5 {[%emt 0:05:22]} 25. Ncd5 {[%emt 0:05:21]} Qxc2 {[%emt 0:03:34]} 26. Nxf6+ {[%emt 0:00:20]} Kg7 {[%emt 0:00:17]} 27. Nxc2 {[%emt 0:00:37]} Bxb3 {[%emt 0:02:12]} 28. Nd7 {[%emt 0:02:04]} Bxc2 {[%emt 0:10:33]} 29. Rd2 {[%emt 0:00:02]} Rfd8 {[%emt 0:01:35]} 30. Rxc2 {[%emt 0:00:12]} f6 {[%emt 0:02:31]} 31. Be3 {[%emt 0:00:33]} h5 {[%emt 0:02:32]} 32. Bb6 {[%emt 0:00:18]} Rac8 {[%emt 0:02:02]} 33. Bxc7 {[%emt 0:00:35]} Rxc7 {[%emt 0:00:30]} 34. Rac1 {[%emt 0:00:51]} Kf7 {[%emt 0:00:30]} 35. Kg1 {[%emt 0:01:27]} Ke7 {[%emt 0:00:14]} 36. Kf2 {[%emt 0:00:42]} Kf7 {[%emt 0:01:29]} 37. Ke3 {[%emt 0:00:07]} Ke7 {[%emt 0:01:34]} 38. Ke4 {[%emt 0:01:05]} Kf7 {[%emt 0:00:55]} 39. Kd5 {[%emt 0:00:11]} Ke7 {[%emt 0:00:22]} 40. b3 {[%emt 0:00:16]} Rdc8 {[%emt 0:00:24]} 41. b4 {[%emt 0:30:25]} Rd8 {[%emt 0:30:10]} 42. Kc5 {[%emt 0:00:16]} Ra8 {[%emt 0:04:52]} 43. Kb6 {[%emt 0:00:33]} Rcc8 {[%emt 0:00:38]} 44. Kc5 {[%emt 0:00:23]} Rc7 {[%emt 0:00:42]} 45. Nb6 {[%emt 0:00:04]} Rac8 {[%emt 0:01:46]} 46. Nd5+ {[%emt 0:00:04]} Kf7 {[%emt 0:00:20]} 47. Nxc7 {[%emt 0:00:06]} Rxc7 {[%emt 0:00:08]} 48. Kb6 {[%emt 0:00:16]} Rc8 {[%emt 0:00:12]} 49. c7 {[%emt 0:00:05]} e4 {[%emt 0:00:09]} 50. Kb7 {[%emt 0:00:11]} Rxc7+ {[%emt 0:00:23]} 51. Rxc7+ {[%emt 0:00:04]} Ke6 {[%emt 0:00:09]} 52. fxe4 {[%emt 0:00:14]} Ke5 {[%emt 0:00:06]} 53. Re7+ {[%emt 0:00:17]} Kf4 {[%emt 0:00:09]} 54. Kxa6 {[%emt 0:00:12]} h4 {[%emt 0:00:10]} 55. Kxb5 {[%emt 0:00:09]} h3 {[%emt 0:00:06]} 56. g3+ {[%emt 0:00:04]} Kg5 {[%emt 0:00:21]} 57. Kc5 {[%emt 0:00:14]} f5 {[%emt 0:00:16]} 58. b5 {[%emt 0:00:06]} fxe4 {[%emt 0:00:05]} 59. b6 {[%emt 0:00:08]} e3 {[%emt 0:00:04]} 60. b7 {[%emt 0:00:10]} e2 {[%emt 0:00:18]} 61. b8=Q {[%emt 0:00:31]} Kh6 {[%emt 0:00:10]} 62. Qf4+ {[%emt 0:01:10] normal} 1-0